bitfinex-derivatives/quotes_SOLF0:USTF0_20260202
["timestamp","ask_amount","ask_price","bid_price","bid_amount"]
[1770075405007,11.43135443,104.71,104.64,133.9149]
[1770075405207,8.50493149,104.71,104.65,136.82942294]
[1770075405409,8.50493149,104.71,104.66,133.8906]
[1770075405606,11.43135443,104.71,104.65,133.903]
[1770075405808,2.92642294,104.7,104.64,133.9149]
[1770075406516,2.92642294,104.7,104.64,136.84132294]
[1770075407118,11.43135443,104.71,104.64,136.84132294]
[1770075407319,11.43135443,104.71,104.65,8.6076]
[1770075407619,11.43135443,104.71,104.65,136.83202294]
[1770075407620,8.50493149,104.71,104.65,136.83202294]
[1770075408116,11.33473335,104.73,104.67,8.6064]
[1770075409516,8.38054695,104.71,104.65,145.43952294]
[1770075409717,11.30696989,104.71,104.65,133.9056]
[1770075411413,8.601,104.74,104.67,8.6063]
[1770075411414,2.92642294,104.72,104.67,8.6063]
[1770075411714,11.30820968,104.7,104.64,133.9149]
[1770075411918,11.30820968,104.7,104.66,8.6073]
[1770075412420,11.30820968,104.7,104.64,8.6084]
[1770075412720,2.92642294,104.69,104.64,8.6084]
[1770075413112,8.38178674,104.7,104.64,8.6084]
[1770075413309,2.92642294,104.69,104.64,8.6084]
[1770075414117,2.92642294,104.69,104.62,8.61]
[1770075414118,2.92642294,104.68,104.62,8.61]
[1770075414714,11.30917545,104.67,104.6,136.88782294]
[1770075414918,2.92642294,104.66,104.6,133.9614]
[1770075415722,16.99127657,104.69,104.61,2.92642294]
[1770075416018,8.38577657,104.68,104.62,2.92642294]
[1770075416224,11.31219951,104.68,104.61,136.88322294]
[1770075416814,8.38577657,104.68,104.63,8.6098]
[1770075417018,354.19219951,104.7,104.63,2.92642294]
[1770075417223,11.31219951,104.7,104.63,2.92642294]
[1770075418422,11.31219951,104.7,104.64,8.609]
[1770075419624,2.92642294,104.69,104.64,8.609]
[1770075419819,8.38577657,104.7,104.64,8.609]
[1770075420024,11.31219951,104.7,104.64,8.609]
[1770075420221,2.92642294,104.7,104.64,8.609]
[1770075420527,8.29960006,104.69,104.64,8.609]
[1770075420921,11.226023,104.71,104.64,136.84432294]
[1770075421129,8.29960006,104.71,104.65,2.92642294]
[1770075421621,8.29960006,104.71,104.59,136.90832294]
[1770075421622,2.92642294,104.66,104.59,136.90832294]
[1770075421825,2.92642294,104.65,104.59,136.90832294]
[1770075422018,2.92642294,104.65,104.59,133.9819]
[1770075423331,2.92642294,104.65,104.61,8.6114]
[1770075423524,2.92642294,104.66,104.61,8.6114]
[1770075423824,11.30123982,104.66,104.61,8.6114]
[1770075428535,8.37481688,104.66,104.62,8.6106]
[1770075428729,11.30123982,104.66,104.62,8.6106]
[1770075429532,11.30123982,104.66,104.61,8.6114]
[1770075430427,11.29904612,104.66,104.61,8.6114]
[1770075431031,8.3842085,104.63,104.6,8.6123]
[1770075431336,11.30843774,104.63,104.6,8.6123]
[1770075431535,2.92422924,104.64,104.6,8.6123]
[1770075432633,11.31636994,104.67,104.6,2.92422924]
[1770075432834,8.3921407,104.66,104.6,2.92422924]
[1770075433333,2.92422924,104.65,104.61,8.6114]
[1770075433933,11.31636994,104.66,104.61,8.6114]
[1770075434933,17.00486699,104.68,104.61,2.92422924]
[1770075435140,2.92422924,104.67,104.61,2.92422924]
[1770075435441,11.32329623,104.67,104.6,136.89322924]
[1770075435743,8.40165419,104.71,104.65,2.92422924]
[1770075436838,8.40165419,104.71,104.66,8.6067]
[1770075437138,8.40165419,104.71,104.66,11.53092924]
[1770075438339,8.40165419,104.71,104.67,8.6064]
[1770075439340,8.33037863,104.73,104.67,2.92422924]
[1770075440040,8.33037863,104.73,104.68,8.6052]
[1770075440639,11.21415327,104.71,104.64,423.10750528]
[1770075440838,3.98667403,104.7,104.64,408.24162924]
[1770075441542,6.91090327,104.7,104.66,8.6073]
[1770075442145,6.91090327,104.7,104.65,8.6081]
[1770075443246,3.98667403,104.7,104.65,8.6081]
[1770075443450,3.98667403,104.7,104.66,8.6073]
[1770075446550,6.91090327,104.7,104.66,8.6073]
[1770075450953,3.98849413,104.72,104.67,8.6064]
[1770075451153,6.91272337,104.72,104.67,8.6064]
[1770075452054,7.0338778,104.71,104.67,8.6064]
[1770075454647,4.10964856,104.71,104.67,8.6064]
[1770075455557,7.0338778,104.71,104.67,8.6064]
[1770075456450,6.94321148,104.7,104.66,8.6072]
[1770075456656,2.92422924,104.69,104.63,136.84712924]
[1770075456846,6.94321148,104.7,104.63,133.9229]
[1770075457051,6.94321148,104.7,104.63,136.84712924]
[1770075458159,6.94321148,104.7,104.65,8.608]
[1770075458761,2.92422924,104.69,104.65,8.608]
[1770075459653,284.61704423,104.73,104.63,133.9229]
[1770075459860,6.86127347,104.73,104.66,2.92422924]
[1770075460052,8.6008,104.74,104.65,133.9055]
[1770075460053,6.86127347,104.72,104.65,136.82972924]
[1770075460554,6.86127347,104.72,104.67,8.6062]
[1770075461249,6.86127347,104.7,104.65,8.6075]
[1770075466362,6.84448028,104.71,104.65,8.6075]
[1770075467461,2.92422924,104.72,104.66,8.6072]
[1770075467759,6.86157192,104.72,104.66,8.6072]
[1770075469158,6.86157192,104.72,104.67,8.6063]
[1770075470364,2.92422924,104.71,104.67,8.6063]
[1770075471465,3.80472048,104.69,104.66,8.6073]
[1770075471965,2.92422924,104.7,104.66,8.6073]
[1770075472364,6.72894972,104.7,104.66,8.6073]
[1770075472564,2.92422924,104.68,104.62,136.86672924]
[1770075472865,2.92422924,104.7,104.63,2.92422924]
[1770075474367,2.92422924,104.7,104.65,8.6081]
[1770075475565,6.71901967,104.7,104.65,8.6081]
[1770075479570,6.71901967,104.7,104.66,8.6073]
[1770075480167,6.71901967,104.7,104.65,0.0386675]
[1770075480368,15.27653995,104.72,104.67,8.6451675]
[1770075482573,3.74961071,104.72,104.68,8.6057]
[1770075483879,6.67383995,104.72,104.67,8.6450675]
[1770075485376,6.66324033,104.71,104.67,8.6450675]
[1770075485576,6.66324033,104.71,104.67,8.6064]
[1770075486473,3.73901109,104.71,104.67,8.6064]
[1770075486982,6.66324033,104.71,104.67,8.6064]
[1770075489681,6.66324033,104.71,104.67,8.89783622]
[1770075489982,6.66324033,104.73,104.68,8.89713622]
[1770075490277,3.73901109,104.73,104.69,0.29143622]
[1770075490581,6.66324033,104.73,104.69,0.29143622]
[1770075490780,2.92422924,104.72,104.68,8.6057]
[1770075491381,15.26504033,104.73,104.68,8.6057]
[1770075492387,6.65932439,104.73,104.68,8.90041781]
[1770075494383,3.73901109,104.72,104.68,8.90041781]
[1770075496787,6.65932439,104.72,104.68,8.90041781]
[1770075497689,2.9203133,104.71,104.68,8.90041781]
[1770075498889,6.65932439,104.72,104.68,8.90041781]
[1770075499788,2.9203133,104.71,104.68,8.90041781]
[1770075500791,6.65932439,104.72,104.68,8.90041781]
[1770075501686,6.65932439,104.72,104.69,8.6047]
[1770075502492,2.9203133,104.73,104.69,8.6047]
[1770075503993,2.9203133,104.73,104.69,8.91140605]
[1770075505691,6.54838102,104.74,104.69,8.91140605]
[1770075505892,2.9203133,104.73,104.69,8.91140605]
[1770075506098,8.6002,104.75,104.66,154.60211858]
[1770075506099,2.9203133,104.75,104.7,0.3088684]
[1770075506593,2.9203133,104.75,104.71,8.6032]
[1770075506795,429.26768102,104.76,104.71,8.6032]
[1770075506997,396.26768102,104.76,104.71,8.9120684]
[1770075507189,6.54838102,104.76,104.71,8.9120684]
[1770075507386,8.5985,104.77,104.72,0.28097589]
[1770075507387,2.9203133,104.77,104.72,0.28097589]
[1770075507592,192.76971278,104.81,104.74,136.98878919]
[1770075507593,6.54912673,104.81,104.74,136.98878919]
[1770075507794,6.54912673,104.8,104.75,0.28097589]
[1770075507992,2.9203133,104.79,104.75,8.88037589]
[1770075508297,2.9203133,104.78,104.73,0.28097589]
[1770075509392,3.62806772,104.78,104.74,8.88844442]
[1770075509593,6.54838102,104.78,104.74,8.88844442]
[1770075510995,3.62806772,104.78,104.75,8.5998]
[1770075511197,8.5951,104.81,104.75,8.5998]
[1770075511198,2.9203133,104.79,104.75,8.5998]
[1770075512096,6.54838102,104.8,104.75,8.5998]
[1770075512288,3.62806772,104.8,104.75,8.83209531]
[1770075512699,6.57346702,104.79,104.75,8.83209531]
[1770075513097,3.65315372,104.79,104.75,8.83209531]
[1770075514799,3.65315372,104.79,104.75,8.5998]
[1770075514994,6.57357975,104.78,104.74,8.6008]
[1770075515294,3.65326645,104.78,104.74,8.6008]
[1770075515498,6.57357975,104.78,104.74,8.6008]
[1770075516291,2.9203133,104.76,104.73,8.6016]
[1770075516497,6.58251092,104.77,104.73,8.6016]
[1770075516695,2.9203133,104.76,104.73,8.6016]
[1770075519005,6.60813302,104.76,104.71,8.6026]
[1770075519203,6.60813302,104.75,104.71,8.6026]
[1770075519697,6.60813302,104.75,104.7,0.16296331]
[1770075520004,2.9203133,104.74,104.7,8.76696331]
[1770075521905,2.9203133,104.75,104.71,8.75226315]
[1770075522804,6.6151331,104.76,104.71,8.75226315]
[1770075524702,6.6104683,104.75,104.71,8.6033]
[1770075526209,2.9203133,104.74,104.7,8.604]
[1770075526404,6.62802281,104.74,104.7,8.604]
[1770075526603,6.62802281,104.74,104.7,8.72718373]
[1770075526810,2.9203133,104.75,104.71,8.6032]
[1770075527114,2.9203133,104.77,104.72,0.12318373]
[1770075527508,48.22562281,104.78,104.72,0.12318373]
[1770075527712,15.22562281,104.78,104.72,0.12318373]
[1770075527908,3.70915047,104.77,104.72,0.12318373]
[1770075528305,6.62946377,104.77,104.73,8.6013]
[1770075533215,6.62946377,104.77,104.72,8.72548373]
[1770075534416,2.9203133,104.76,104.72,8.72548373]
[1770075535619,6.62946377,104.77,104.72,8.72548373]
[1770075535918,3.70915047,104.77,104.72,8.72548373]
[1770075536519,6.62946377,104.77,104.72,8.72548373]
[1770075537022,2.9203133,104.78,104.73,8.69791903]
[1770075538617,2.9203133,104.78,104.74,8.6008]
[1770075538815,6.64294823,104.79,104.75,0.11064558]
[1770075539013,15.23153496,104.81,104.75,8.71004558]
[1770075540019,3.79970026,104.8,104.75,8.71004558]
[1770075540217,3.79970026,104.79,104.75,0.11064558]
[1770075540515,6.72001356,104.78,104.71,413.8262133]
[1770075540716,6.72001356,104.77,104.71,2.9203133]
[1770075540915,6.72001356,104.77,104.72,8.6024]
[1770075541618,6.72001356,104.77,104.73,8.6014]
[1770075542620,2.9203133,104.76,104.7,136.7611133]
[1770075543324,2.9203133,104.76,104.72,8.6024]
[1770075544023,15.31841356,104.77,104.72,8.6024]
[1770075544524,6.71039673,104.76,104.71,8.6032]
[1770075544924,2.9203133,104.74,104.68,133.858]
[1770075545125,2.9203133,104.74,104.69,8.6042]
[1770075545322,6.71039673,104.75,104.69,8.6042]
[1770075545525,6.71039673,104.75,104.7,8.604]
[1770075545723,2.9203133,104.74,104.7,8.604]
[1770075547923,6.71039673,104.75,104.7,8.604]
[1770075548722,2.9203133,104.74,104.7,8.604]
[1770075550521,6.92868976,104.74,104.7,8.604]
[1770075550720,6.92868976,104.73,104.67,17.79010528]
[1770075550924,6.92868976,104.72,104.66,17.79010528]
[1770075551125,6.92868976,104.72,104.65,154.61091858]
[1770075551623,7.02790788,104.74,104.67,136.8010133]
[1770075552526,7.02721334,104.74,104.67,136.80031876]
[1770075553127,7.02721334,104.74,104.69,8.6043]
[1770075555828,7.02721334,104.74,104.7,8.6041]
[1770075556229,2.91961876,104.73,104.7,8.6041]
[1770075557827,7.02721334,104.74,104.7,8.6041]
[1770075561627,2.91961876,104.75,104.71,8.6031]
[1770075561822,7.34748057,104.76,104.69,270.61671876]
[1770075562022,7.34748057,104.76,104.69,288.40682404]
[1770075563330,7.34748057,104.76,104.72,8.6023]
[1770075565934,7.33196296,104.74,104.68,17.79010528]
[1770075566130,7.33196296,104.74,104.67,432.26872404]
[1770075566523,2.91961876,104.73,104.67,429.34910528]
[1770075566729,7.33196296,104.72,104.67,17.79010528]
[1770075567033,2.91961876,104.7,104.64,151.69960528]
[1770075567528,2.91961876,104.7,104.67,8.6066]
[1770075567734,2.91961876,104.71,104.67,8.6066]
[1770075568634,7.35751525,104.72,104.67,8.6066]
[1770075571134,2.91961876,104.73,104.68,8.6057]
[1770075572335,2.91961876,104.72,104.68,8.6057]
[1770075576441,7.31904021,104.73,104.68,8.6057]
[1770075579444,15.92074021,104.73,104.67,8.6066]
[1770075580145,15.92074021,104.73,104.68,8.6057]
[1770075582449,2.91961876,104.72,104.68,8.6057]
[1770075582745,15.92074021,104.73,104.68,8.6057]
[1770075583847,2.91961876,104.72,104.68,8.6057]
[1770075584944,7.17715623,104.72,104.68,8.6057]
[1770075587960,2.91961876,104.71,104.66,8.6066]
[1770075588452,2.91961876,104.71,104.66,8.6073]
[1770075588655,2.91961876,104.71,104.64,154.61922404]
[1770075589058,2.91961876,104.71,104.65,17.79010528]
[1770075589359,15.77975623,104.72,104.65,17.79010528]
[1770075590458,15.77975623,104.72,104.67,8.6064]
[1770075590658,2.91961876,104.71,104.67,8.6064]
[1770075593063,2.91961876,104.71,104.68,8.6057]
[1770075593264,7.17715623,104.72,104.68,8.6057]
[1770075593563,40.17432409,104.74,104.67,2.91961876]
[1770075593764,7.17432409,104.73,104.69,8.6042]
[1770075596665,2.91961876,104.72,104.69,8.6042]
[1770075597165,2.91961876,104.73,104.69,8.6042]
[1770075599265,15.77103882,104.73,104.68,8.6057]
[1770075599471,2.91961876,104.72,104.68,8.6057]
[1770075601368,2.91961876,104.69,104.66,8.6068]
[1770075601974,2.91961876,104.68,104.64,8.6083]
[1770075602672,2.91961876,104.67,104.63,8.6097]
[1770075603572,7.1687669,104.68,104.63,8.6097]
[1770075604572,4.24914814,104.68,104.63,8.6097]
[1770075604772,7.1687669,104.68,104.63,8.6097]
[1770075608873,2.91961876,104.67,104.63,8.6097]
[1770075609771,4.24526272,104.7,104.64,8.609]
[1770075609971,414.16,104.71,104.64,8.609]
[1770075609972,7.16488148,104.69,104.64,8.609]
[1770075611067,2.91961876,104.68,104.64,8.609]
[1770075612377,7.16782953,104.69,104.64,8.609]
[1770075612876,2.92256681,104.68,104.64,8.609]
[1770075617874,7.07328903,104.68,104.64,8.609]
[1770075618074,7.07328903,104.67,104.63,8.6096]
[1770075618271,2.92256681,104.66,104.6,133.9628]
[1770075618672,2.92256681,104.66,104.62,8.61]
[1770075618874,7.07328903,104.67,104.62,8.61]
[1770075623183,15.62986544,104.69,104.62,2.92256681]
[1770075623387,384.12256681,104.7,104.63,2.92256681]
[1770075623682,4.08999395,104.71,104.65,2.92256681]
[1770075623882,12.69389395,104.71,104.66,8.6074]
[1770075627084,4.08999395,104.71,104.66,8.6074]
[1770075631192,7.01256076,104.71,104.66,8.6074]
[1770075633192,3.98235247,104.7,104.66,8.6074]
[1770075634394,6.89025548,104.71,104.66,8.6074]
[1770075636097,6.89025548,104.71,104.67,8.6064]
[1770075636999,15.49355548,104.71,104.65,8.6075]
[1770075637191,15.49355548,104.71,104.64,2.92256681]
[1770075637388,2.92256681,104.7,104.63,136.85296681]
[1770075637696,2.92256681,104.7,104.66,8.6072]
[1770075638800,6.89025548,104.71,104.66,8.6072]
[1770075644504,6.89025548,104.71,104.67,8.6065]
[1770075653401,6.85563349,104.7,104.66,8.6072]
[1770075657508,3.93306668,104.7,104.66,8.6072]
[1770075657705,3.93306668,104.7,104.65,8.6081]
[1770075661503,3.98811742,104.69,104.65,8.6081]
[1770075661709,6.91068423,104.69,104.65,8.6081]
[1770075661905,3.98811742,104.69,104.65,8.6081]
[1770075663410,6.91068423,104.69,104.65,8.6081]
[1770075663612,6.91068423,104.69,104.64,8.609]
[1770075666512,6.91068423,104.69,104.65,8.6081]
[1770075667211,8.6042,104.7,104.63,2.92256681]
[1770075667212,6.92017498,104.71,104.66,8.6072]
[1770075667608,39.91848117,104.72,104.65,2.92256681]
[1770075668011,6.91848117,104.72,104.65,2.92256681]
[1770075669411,6.91848117,104.72,104.67,8.6064]
[1770075669814,3.98618072,104.71,104.67,8.6064]
[1770075670915,3.98618072,104.71,104.65,2.92256681]
[1770075670916,388.06874753,104.73,104.68,8.6057]
[1770075671417,6.90874753,104.73,104.68,8.6057]
[1770075674215,3.98618072,104.73,104.69,8.6048]
[1770075674425,6.8768627,104.74,104.69,8.6048]
[1770075674717,6.8768627,104.74,104.67,136.79113732]
[1770075674911,6.8768627,104.74,104.68,2.91943732]
[1770075676118,3.95742538,104.74,104.68,136.78653732]
[1770075677319,6.8768627,104.74,104.68,2.91943732]
[1770075677522,3.94772936,104.73,104.67,136.79113732]
[1770075677715,6.86716668,104.73,104.66,133.8919]
[1770075678021,6.86716668,104.73,104.66,136.81133732]
[1770075678522,6.86716668,104.72,104.67,8.6065]
[1770075678914,6.86716668,104.72,104.65,412.90283732]
[1770075679120,3.94772936,104.72,104.66,2.91943732]
[1770075679921,3.94772936,104.72,104.68,8.6057]
[1770075682122,6.86716668,104.72,104.68,8.6057]
[1770075682322,3.94772936,104.72,104.68,8.6057]
[1770075685821,3.94772936,104.72,104.67,8.6065]
[1770075686018,6.84822727,104.71,104.67,8.6065]
[1770075686829,3.92878995,104.71,104.67,8.6065]
[1770075687024,2.91943732,104.72,104.67,8.6065]
[1770075687220,6.84822727,104.73,104.68,8.6057]
[1770075687727,3.92878995,104.73,104.68,8.6057]
[1770075688025,3.92878995,104.73,104.69,8.6044]
[1770075690730,15.4268339,104.75,104.69,8.6044]
[1770075693535,3.83143536,104.74,104.69,8.6044]
[1770075693731,6.75087268,104.73,104.69,8.6044]
[1770075696831,3.83143536,104.73,104.69,8.6044]
[1770075697136,3.83143536,104.73,104.67,136.79933732]
[1770075698232,3.83143536,104.73,104.68,2.91943732]
[1770075698432,3.83143536,104.73,104.7,8.6039]
[1770075700634,3.81420469,104.75,104.71,8.6032]
[1770075700932,6.73364201,104.75,104.71,8.6032]
[1770075701434,3.81420469,104.73,104.67,136.79933732]
[1770075702333,3.81420469,104.73,104.69,8.6047]
[1770075706238,3.81420469,104.73,104.67,136.79933732]
[1770075708238,2.91943732,104.74,104.69,8.6043]
[1770075708441,3.76980232,104.74,104.69,8.6043]
[1770075708841,6.68923964,104.74,104.69,8.6043]
[1770075710438,3.81555345,104.73,104.69,8.6043]
[1770075710638,6.73499077,104.73,104.69,8.6043]
[1770075711040,3.81555345,104.71,104.66,17.83140246]
[1770075711238,3.81555345,104.71,104.65,17.83140246]
[1770075711644,3.81555345,104.71,104.67,8.6063]
[1770075714652,3.81555345,104.71,104.65,154.65383978]
[1770075716252,6.75508776,104.73,104.68,8.605]
[1770075716446,3.83565044,104.72,104.68,8.605]
[1770075716652,6.75508776,104.72,104.68,8.605]
[1770075721353,3.82258254,104.71,104.66,8.6072]
[1770075721558,6.74201986,104.7,104.66,8.6072]
[1770075727866,2.91943732,104.7,104.67,8.6066]
[1770075728063,2.91943732,104.71,104.67,8.6066]
[1770075728463,6.69445106,104.71,104.67,8.6066]
[1770075734369,6.69635883,104.71,104.67,8.6066]
[1770075743772,2.92134509,104.7,104.67,8.6066]
[1770075744272,3.83287712,104.69,104.66,8.6073]
[1770075744470,6.75422221,104.69,104.62,154.07714509]
[1770075744671,6.75422221,104.68,104.61,136.87774509]
[1770075744871,6.75422221,104.68,104.63,8.6092]
[1770075746677,6.75422221,104.68,104.64,8.6088]
[1770075746875,2.92134509,104.67,104.64,8.6088]
[1770075747075,6.75422221,104.68,104.64,8.6088]
[1770075747776,2.92134509,104.67,104.63,8.6098]
[1770075749269,2.92134509,104.67,104.62,8.6105]
[1770075749478,2.92134509,104.66,104.62,8.6105]
[1770075750076,2.92134509,104.66,104.59,136.89554509]
[1770075750678,6.68885816,104.66,104.59,136.89554509]
[1770075750976,6.68885816,104.65,104.6,8.6122]
[1770075751176,2.92134509,104.64,104.6,8.6122]
[1770075753375,2.92134509,104.64,104.61,0.04905029]
[1770075753580,6.68885816,104.65,104.61,0.04905029]
[1770075756679,6.68885816,104.65,104.61,8.66045029]
[1770075760474,381.26,104.69,104.62,0.04041345]
[1770075760475,6.66647326,104.67,104.62,0.04041345]
[1770075761179,15.27317326,104.67,104.62,0.04041345]
[1770075761380,3.75633855,104.66,104.62,0.04041345]
[1770075762585,6.67768364,104.66,104.62,0.04041345]
[1770075763590,3.75633855,104.66,104.62,8.65081345]
[1770075763790,3.75088169,104.68,104.63,0.0289064]
[1770075765381,3.75088169,104.68,104.64,8.609]
[1770075765579,6.67222678,104.68,104.64,8.609]
[1770075766983,3.75088169,104.68,104.64,8.609]
[1770075767786,3.75088169,104.68,104.65,8.6081]
[1770075767988,6.6246296,104.69,104.65,8.6081]
[1770075768982,3.70328451,104.68,104.64,8.73300076]
[1770075769179,6.6246296,104.68,104.64,8.73300076]
[1770075771492,3.70328451,104.68,104.64,8.73300076]
[1770075779606,15.19371744,104.7,104.65,0.19883655]
[1770075779806,3.66807235,104.69,104.65,0.19883655]
[1770075780405,6.58941744,104.69,104.65,0.19883655]
[1770075780605,3.66807235,104.68,104.64,8.6089]
[1770075781505,3.66807235,104.68,104.63,8.80843655]
[1770075781705,3.66807235,104.68,104.64,0.19691388]
[1770075792822,3.66807235,104.68,104.64,8.80531388]
[1770075793514,3.65052035,104.7,104.66,0.23394056]
[1770075796222,3.64951739,104.69,104.65,8.84374648]
[1770075799926,3.64951739,104.69,104.66,8.6074]
[1770075804522,3.64951739,104.69,104.65,8.6081]
[1770075804725,3.79139777,104.67,104.61,136.87749621]
[1770075806427,3.79139777,104.67,104.63,8.6093]
[1770075807429,3.85129821,104.68,104.64,8.6088]
[1770075808425,6.77249442,104.68,104.64,8.6088]
[1770075813734,3.81837529,104.67,104.62,8.61]
[1770075813935,6.7395715,104.67,104.62,8.61]
[1770075814635,3.81837529,104.67,104.62,8.61]
[1770075816132,6.7395715,104.67,104.62,8.61]
[1770075816435,12.41829902,104.69,104.62,2.92119621]
[1770075816634,6.73449523,104.68,104.62,2.92119621]
[1770075817539,6.73449523,104.68,104.64,8.6089]
[1770075817835,3.81329902,104.68,104.64,8.6089]
[1770075822540,3.81329902,104.68,104.65,8.6081]
[1770075822839,3.78891263,104.69,104.63,136.85249621]
[1770075823037,3.78891263,104.69,104.65,8.6076]
[1770075824033,2.92119621,104.69,104.64,8.609]
[1770075824238,3.78973752,104.68,104.64,8.609]
[1770075827241,6.71093373,104.68,104.64,8.609]
[1770075827938,6.7097009,104.66,104.62,8.6103]
[1770075830335,6.70243103,104.68,104.61,136.87699621]
[1770075830840,3.78123482,104.68,104.62,2.92119621]
[1770075831242,15.30673103,104.7,104.64,8.6082]
[1770075831444,6.70243103,104.7,104.63,2.92119621]
[1770075831643,3.78123482,104.7,104.63,2.92119621]
[1770075831942,3.78123482,104.7,104.64,2.92119621]
[1770075832344,6.70243103,104.7,104.63,2.92119621]
[1770075833140,3.80091251,104.69,104.63,2.92119621]
[1770075833343,3.80091251,104.69,104.65,8.6082]
[1770075834646,3.80091251,104.69,104.64,8.6089]
[1770075836245,3.79974087,104.68,104.64,8.6089]
[1770075838450,6.72093708,104.68,104.64,8.6089]
[1770075838650,3.8289239,104.67,104.63,8.6097]
[1770075846459,2.92119621,104.68,104.63,8.6097]
[1770075847061,6.76888066,104.68,104.63,8.6097]
[1770075848160,3.84768445,104.68,104.63,8.6097]
[1770075851062,3.84768445,104.68,104.64,8.6088]
[1770075853865,6.71555825,104.7,104.65,8.6082]
[1770075856466,6.71603504,104.7,104.65,8.6082]
[1770075858861,3.78377226,104.69,104.62,133.944]
[1770075859063,2.921673,104.65,104.61,3.42383503]
[1770075859366,3.55099707,104.66,104.61,3.42383503]
[1770075859558,2.921673,104.64,104.61,3.42383503]
[1770075859761,2.921673,104.65,104.61,3.42383503]
[1770075860972,2.921673,104.65,104.61,12.03523503]
[1770075865673,2.921673,104.65,104.62,3.61585417]
[1770075866969,2.921673,104.63,104.6,3.61585417]
[1770075867372,6.52247238,104.64,104.6,3.61585417]
[1770075867574,2.921673,104.64,104.6,3.61585417]
[1770075874074,2.921673,104.64,104.6,12.22815417]
[1770075878580,12.20759938,104.67,104.62,3.61585417]
[1770075878771,6.52247238,104.66,104.62,3.61585417]
[1770075879875,6.52247238,104.65,104.61,8.6111]
[1770075885082,6.52247238,104.65,104.61,12.22695417]
[1770075889583,2.921673,104.64,104.61,12.22695417]
[1770075889786,3.42870839,104.63,104.59,12.00980629]
[1770075890178,6.35038139,104.63,104.59,12.00980629]
[1770075891384,3.42870839,104.63,104.59,12.00980629]
[1770075896883,15.27416047,104.64,104.59,12.00980629]
[1770075897084,6.66506047,104.64,104.6,3.71917544]
[1770075897284,11.530073,104.65,104.61,3.71917544]
[1770075897787,15.27346047,104.65,104.61,3.71917544]
[1770075900592,3.74338747,104.65,104.61,12.33007544]
[1770075900796,6.66506047,104.65,104.61,12.33007544]
[1770075900997,2.921673,104.64,104.58,3.71917544]
[1770075901190,2.921673,104.64,104.6,12.33097544]
[1770075901390,6.66506047,104.66,104.61,3.71917544]
[1770075901989,6.66506047,104.66,104.62,8.6107]
[1770075902190,3.74338747,104.66,104.61,3.71917544]
[1770075902391,3.74338747,104.66,104.62,8.6102]
[1770075902787,6.66506047,104.66,104.62,12.32937544]
[1770075904795,15.27256047,104.66,104.62,3.71917544]
[1770075906094,11.529173,104.66,104.62,3.71917544]
[1770075906394,12.35008747,104.67,104.63,3.71917544]
[1770075912296,15.27176047,104.67,104.63,3.71917544]
[1770075912698,3.74338747,104.67,104.63,12.32897544]
[1770075912896,6.66506047,104.68,104.64,3.71917544]
[1770075913196,3.74338747,104.68,104.64,3.71917544]
[1770075915692,6.66506047,104.68,104.64,3.71917544]
[1770075916398,6.6660555,104.68,104.64,3.71917544]
[1770075918394,3.74338747,104.68,104.64,3.71917544]
[1770075925500,3.74338747,104.68,104.64,12.32817544]
[1770075928295,393.61194262,104.7,104.65,12.06569933]
[1770075929097,393.61194262,104.7,104.65,14.98836736]
[1770075929296,393.61194262,104.7,104.65,12.06569933]
[1770075931199,3.64764262,104.69,104.65,12.06569933]
[1770075932201,6.57031065,104.69,104.65,12.06569933]
[1770075932401,3.64764262,104.68,104.63,12.06679933]
[1770075932904,3.64764262,104.68,104.63,3.45749933]
[1770075934405,3.64764262,104.68,104.64,8.6088]
[1770075934800,3.64764262,104.68,104.64,12.06629933]
[1770075939009,6.57031065,104.68,104.64,12.06629933]
[1770075942811,3.64764262,104.68,104.64,12.06629933]
[1770075945707,6.57031065,104.68,104.64,3.45749933]
[1770075946810,3.64764262,104.68,104.64,12.06599933]
[1770075952016,6.57031065,104.68,104.64,12.06599933]
[1770075960220,6.57031065,104.68,104.64,3.45749933]
[1770075960421,2.92266803,104.66,104.62,3.46656344]
[1770075961320,2.92266803,104.66,104.62,12.07706344]
[1770075961717,3.71820967,104.67,104.63,3.46656344]
[1770075962019,6.6408777,104.67,104.63,3.46656344]
[1770075963119,6.6408777,104.67,104.63,12.07636344]
[1770075963419,2.92266803,104.66,104.63,12.07636344]
[1770075966228,6.6408777,104.66,104.61,3.46656344]
[1770075967322,6.6408777,104.66,104.62,12.07726344]
[1770075968627,2.92266803,104.67,104.63,12.07636344]
[1770075969026,6.6408777,104.67,104.63,3.46656344]
[1770075970526,15.2474777,104.67,104.63,3.46656344]